lending/lending_fUSD_20240111
["ID","MTS","AMOUNT","RATE_DAILY","PERIOD"]
[311254217,1704997844455,-10742.81723,0.00035342,2]
[311254218,1704997844464,-3357.130385,0.00035342,2]
[311254219,1704997844473,-4286.976362,0.00035342,2]
[311254220,1704997844483,-7673.440879,0.00035342,2]
[311254222,1704997844492,-1421.444351,0.00035342,2]
[311254224,1704997844504,-2397.950275,0.00035342,2]
[311254226,1704997844513,-2904.909709,0.00035342,2]
[311254229,1704997844523,-151.68522207,0.000354,2]
[311254231,1704997844532,-1458.83,0.00035448,2]
[311254232,1704997844541,-665.62,0.00035594,2]
[311254234,1704997844551,-2751.0,0.000356,2]
[311254236,1704997844560,-2500.0,0.000356,30]
[311254238,1704997844570,-5365.0,0.000356,2]
[311254241,1704997844579,-153.84,0.00035616,2]
[311254242,1704997844588,-200.0,0.00035616,2]
[311254244,1704997844597,-155.0,0.00035617,2]
[311254247,1704997844607,-1891.06,0.000357,7]
[311254249,1704997844616,-7377.63,0.000357,7]
[311254251,1704997844625,-5678.68,0.000357,7]
[311254252,1704997844634,-4182.55,0.00035798,2]
[311254255,1704997844644,-200.0,0.00035809,13]
[311254256,1704997844653,-228.0,0.00035895,2]
[311254258,1704997844663,-2107.51,0.0003595,10]
[311254259,1704997844672,-1756.26,0.0003595,10]
[311254261,1704997844681,-1463.55,0.0003595,10]
[311254263,1704997844690,-151.68522207,0.00035956,2]
[311254264,1704997844699,-4729.0,0.0003596,30]
[311254266,1704997844709,-4729.0,0.0003596,60]
[311254268,1704997844718,-150.0,0.00035999,2]
[311254270,1704997844727,-251.42218854,0.00036,2]
[311254272,1704997844737,-115203.49795595,0.00036,4]
[311254274,1704997844747,-762.6000504,0.00036,4]
[311254276,1704997844756,-150.0,0.0003602,120]
[311254278,1704997844765,-3854.43496631,0.00036089,2]
[311254280,1704997844774,-3854.43496628,0.00036089,2]
[311254282,1704997844783,-3854.43496628,0.00036089,2]
[311254284,1704997844792,-3854.43496628,0.00036089,2]
[311254286,1704997844801,-86.23872564,0.00036089,2]
[311254288,1704997844814,-3768.19624064,0.00036089,2]
[311254290,1704997844823,-3854.43496628,0.00036089,2]
[311254292,1704997844832,-151.0,0.00036179,4]
[311254294,1704997844842,-7377.63,0.000362,7]
[311254296,1704997844851,-5678.68,0.000362,7]
[311254298,1704997844860,-450.0,0.0003626,3]
[311254300,1704997844870,-2473.262251,0.000363,25]
[311254302,1704997844879,-200.0,0.00036463,14]
[311254304,1704997844887,-6522.32368624,0.000365,6]
[311254306,1704997844897,-10007.49426658,0.00036506,9]
[311254308,1704997844905,-151.68522207,0.00036513,2]
[311254310,1704997844915,-153.84,0.0003653,2]
[311254312,1704997844924,-1482.16,0.00036613,15]
[311254314,1704997844934,-2000.0,0.000367,2]
[311254316,1704997844943,-1891.06,0.000367,7]
[311254318,1704997844953,-200.0,0.00036703,10]
[311254320,1704997844962,-155.2371007,0.0003671,4]
[311254322,1704997844971,-765.08541649,0.0003673,9]
[311254324,1704997844980,-765.08541647,0.0003673,9]
[311254326,1704997844989,-765.08541647,0.0003673,9]
[311254328,1704997844999,-765.08541647,0.0003673,9]
[311254330,1704997845008,-765.08541647,0.0003673,9]
[311254332,1704997845018,-3000.0,0.000368,14]
[311254334,1704997845027,-7377.63,0.000368,7]
[311254336,1704997845037,-5678.68,0.000368,7]
[311254338,1704997845045,-1500.0,0.000368,25]
[311254340,1704997845055,-4696.35765184,0.00036801,2]
[311254342,1704997845064,-3000.0,0.0003681,14]
[311254344,1704997845073,-3000.0,0.0003682,14]
[311254346,1704997845082,-3000.0,0.0003683,14]
[311254348,1704997845092,-3000.0,0.0003684,14]
[311254350,1704997845101,-5405.101192,0.0003685,14]
[311254352,1704997845110,-390.91547884,0.00036862,2]
[311254354,1704997845119,-789.0,0.000369,30]
[311254356,1704997845128,-151.0,0.00036918,2]
[311254358,1704997845137,-150.39533009,0.0003696,30]
[311254360,1704997845148,-150.0,0.0003696,30]
[311254362,1704997845158,-155.0,0.00036987,2]
[311254363,1704997845167,-150.0,0.00036999,2]
[311254365,1704997845176,-1397.68747687,0.00037,7]
[311254366,1704997845185,-5000.0,0.00037,3]
[311254368,1704997845194,-155.0,0.00037,4]
[311254370,1704997845203,-310.27195603,0.00037,4]
[311254371,1704997845212,-650.0,0.00037,3]
[311254373,1704997845221,-279.57,0.00037,2]
[311254375,1704997845230,-151.68522207,0.0003707,2]
[311254377,1704997845239,-4182.55,0.00037075,2]
[311254378,1704997845250,-200.0,0.00037117,15]
[311254380,1704997845260,-3854.43496628,0.0003713,2]
[311254382,1704997845270,-100662.7108418,0.00037165,12]
[311254384,1704997845279,-81962.11072876,0.00037165,13]
[311254385,1704997845288,-87705.01690282,0.00037165,13]
[311254402,1704997845478,-18873.65221324,0.00037165,10]
[311254403,1704997845488,-8513.43265653,0.00037165,11]
[311254405,1704997845497,-158.41999954,0.00037263,2]
[311254407,1704997845506,-875.0,0.000373,2]
[311254408,1704997845515,-7377.63,0.000373,7]
[311254410,1704997845524,-5678.68,0.000373,7]
[311254412,1704997845534,-1500.0,0.000373,25]
[311254415,1704997845543,-1493.38738055,0.00037442,8]
[311254417,1704997845552,-153.84,0.00037443,2]
[311254419,1704997845562,-150.57997199,0.0003746,2]
[311254421,1704997845573,-1490.0,0.000375,12]
[311254423,1704997845582,-5000.0,0.000375,25]
[311254425,1704997845591,-450.0,0.000375,3]
[311254426,1704997845600,-450.0,0.000375,3]
[311254428,1704997845609,-151.68522207,0.00037627,2]
[311254430,1704997845618,-1000.0,0.0003773,60]
[311254431,1704997845628,-906.97,0.0003773,30]
[311254433,1704997845637,-500.0,0.0003773,120]
[311254435,1704997845647,-169.00772569,0.0003773,120]
[311254437,1704997845656,-10000.0,0.0003773,120]
[311254439,1704997845665,-514.12226196,0.0003773,120]
[311254441,1704997845675,-305.038799,0.0003773,30]
[311254443,1704997845684,-3535.83,0.0003773,7]
[311254444,1704997845693,-611.96034839,0.0003773,120]
[311254446,1704997845702,-1000.0,0.0003773,2]
[311254448,1704997845712,-1000.0,0.0003773,2]
[311254450,1704997845721,-1000.0,0.0003773,2]
[311254452,1704997845730,-1000.0,0.0003773,2]
[311254453,1704997845739,-1000.0,0.0003773,2]
[311254455,1704997845749,-1000.0,0.0003773,2]
[311254457,1704997845758,-1000.0,0.0003773,2]
[311254459,1704997845767,-1000.0,0.0003773,2]
[311254461,1704997845776,-1000.0,0.0003773,2]
[311254463,1704997845785,-1000.0,0.0003773,2]
[311254465,1704997845794,-1416.688925,0.0003773,2]
[311254467,1704997845803,-264.8247773,0.0003773,120]
[311254468,1704997845812,-1966.56789,0.0003773,30]
[311254470,1704997845821,-200.0,0.0003777,17]
[311254472,1704997845831,-228.0,0.00037789,2]
[311254473,1704997845840,-1891.06,0.000378,7]
[311254475,1704997845849,-50118.02934142,0.000378,30]
[311254477,1704997845859,-676.724794,0.000378,25]
[311254479,1704997845868,-70268.0,0.000378,7]
[311254481,1704997845877,-2504.53,0.000378,3]
[311254483,1704997845887,-2504.53,0.000378,3]
[311254484,1704997845895,-2504.53,0.000378,3]
[311254486,1704997845905,-2504.53,0.000378,3]
[311254488,1704997845914,-2504.53,0.000378,3]
[311254490,1704997845922,-2504.53,0.000378,3]
[311254492,1704997845931,-2504.53,0.000378,3]
[311254493,1704997845940,-2504.53,0.000378,3]
[311254495,1704997845949,-2504.53,0.000378,3]
[311254497,1704997845958,-2504.53,0.000378,3]
[311254499,1704997845968,-2504.53,0.000378,3]
[311254501,1704997845978,-2504.53,0.000378,3]
[311254503,1704997845987,-2504.53,0.000378,3]
[311254505,1704997845996,-2504.53,0.000378,3]
[311254506,1704997846006,-2504.53,0.000378,3]
[311254508,1704997846015,-2504.53,0.000378,3]
[311254510,1704997846025,-2504.53,0.000378,3]
[311254512,1704997846034,-2504.53,0.000378,3]
[311254514,1704997846044,-2504.53,0.000378,3]
[311254516,1704997846053,-2504.53,0.000378,3]
[311254517,1704997846062,-50000.0,0.000378,3]
[311254519,1704997846071,-50000.0,0.000378,2]
[311254521,1704997846080,-1500.0,0.000378,25]
[311254523,1704997846089,-275.678675,0.000378,2]
[311254525,1704997846098,-157.59,0.000378,3]
[311254527,1704997846107,-157.59,0.000378,3]
[311254528,1704997846116,-157.59,0.000378,3]
[311254530,1704997846125,-391.91305,0.00037808,14]
[311254532,1704997846134,-10936.71,0.00037808,2]
[311254534,1704997846144,-3145.38,0.00037808,2]
[311254536,1704997846153,-665.62,0.00037858,2]
[311254538,1704997846162,-150.0,0.00037899,2]
[311254540,1704997846171,-150.0,0.00037899,2]
[311254542,1704997846180,-241.62,0.000379,2]
[311254544,1704997846189,-800.0,0.000379,13]
[311254546,1704997846199,-622366.318643,0.000379,3]
[311254548,1704997846208,-150.0,0.00037999,2]
[311254550,1704997846217,-545.36055165,0.00037999,4]
[311254552,1704997846226,-500.0,0.00037999,4]
[311254554,1704997846236,-491.07257514,0.00037999,4]
[311254556,1704997846246,-512.60338269,0.00037999,4]
[311254558,1704997846256,-500.0,0.00037999,4]
[311254561,1704997846266,-491.07257514,0.00037999,4]
[311254562,1704997846276,-545.36055166,0.00037999,4]
[311254565,1704997846285,-512.60338269,0.00037999,4]
[311254567,1704997846294,-214.61869835,0.00037999,4]
[311254568,1704997846303,-210.58137274,0.00037999,7]
[311254569,1704997846312,-304.12547235,0.00037999,7]
[311254570,1704997846321,-182.23512316,0.00037999,7]
[311254571,1704997846330,-1660.45577482,0.00038,4]
[311254572,1704997846339,-3060.04420173,0.00038,4]
[311254573,1704997846349,-1049.67172007,0.00038,2]
[311254574,1704997846358,-7377.63,0.00038,7]
[311254575,1704997846367,-5678.68,0.00038,7]
[311254576,1704997846376,-158367.04220359,0.00038,4]
[311254577,1704997846385,-1782.41051028,0.00038,2]
[311254578,1704997846394,-1782.41051028,0.00038,2]
[311254579,1704997846404,-1782.41051028,0.00038,2]
[311254580,1704997846413,-1782.41051028,0.00038,2]
[311254581,1704997846422,-1782.41051028,0.00038,2]
[311254583,1704997846432,-1782.41051028,0.00038,2]
[311254584,1704997846441,-1782.41051028,0.00038,2]
[311254586,1704997846450,-1782.41051028,0.00038,2]
[311254588,1704997846459,-1782.41051028,0.00038,2]
[311254590,1704997846468,-1782.41051028,0.00038,2]
[311254592,1704997846477,-1782.41051028,0.00038,2]
[311254594,1704997846486,-1782.41051028,0.00038,2]
[311254596,1704997846495,-1782.41051028,0.00038,2]
[311254598,1704997846505,-1782.41051028,0.00038,2]
[311254600,1704997846515,-1782.41051028,0.00038,2]
[311254602,1704997846524,-1782.41051028,0.00038,2]
[311254604,1704997846533,-1782.41051028,0.00038,2]
[311254606,1704997846543,-1782.41051028,0.00038,2]
[311254608,1704997846552,-1782.41051028,0.00038,2]
[311254610,1704997846561,-1782.41051028,0.00038,2]
[311254612,1704997846570,-1782.41051028,0.00038,2]
[311254614,1704997846579,-1782.41051028,0.00038,2]
[311254616,1704997846588,-1782.41051028,0.00038,2]
[311254618,1704997846598,-1782.41051028,0.00038,2]
[311254620,1704997846607,-1782.41051028,0.00038,2]
[311254622,1704997846616,-1782.41051028,0.00038,2]
[311254624,1704997846625,-1782.41051028,0.00038,2]
[311254626,1704997846634,-1782.41051028,0.00038,2]
[311254628,1704997846643,-1782.41051028,0.00038,2]
[311254631,1704997846653,-1782.41051028,0.00038,2]
[311254632,1704997846662,-418.17723487,0.00038,2]
[311254635,1704997846671,-418.17723487,0.00038,2]
[311254637,1704997846680,-418.17723487,0.00038,2]
[311254639,1704997846689,-418.17723487,0.00038,2]
[311254641,1704997846698,-418.17723487,0.00038,2]
[311254643,1704997846708,-418.17723487,0.00038,2]
[311254645,1704997846718,-418.17723487,0.00038,2]
[311254647,1704997846727,-418.17723487,0.00038,2]
[311254649,1704997846738,-418.17723487,0.00038,2]
[311254651,1704997846749,-418.17723487,0.00038,2]
[311254653,1704997846759,-418.17723487,0.00038,2]
[311254655,1704997846768,-418.17723487,0.00038,2]
[311254656,1704997846778,-418.17723487,0.00038,2]
[311254659,1704997846788,-418.17723487,0.00038,2]
[311254661,1704997846799,-418.17723487,0.00038,2]
[311254663,1704997846809,-418.17723487,0.00038,2]
[311254664,1704997846818,-418.17723487,0.00038,2]
[311254666,1704997846828,-418.17723487,0.00038,2]
[311254669,1704997846838,-418.17723487,0.00038,2]
[311254670,1704997846847,-418.17723487,0.00038,2]
[311254672,1704997846856,-418.17723487,0.00038,2]
[311254674,1704997846865,-418.17723487,0.00038,2]
[311254677,1704997846877,-418.17723487,0.00038,2]
[311254678,1704997846886,-418.17723487,0.00038,2]
[311254681,1704997846896,-418.17723487,0.00038,2]
[311254683,1704997846905,-418.17723487,0.00038,2]
[311254684,1704997846914,-418.17723487,0.00038,2]
[311254686,1704997846923,-418.17723487,0.00038,2]
[311254688,1704997846932,-418.17723487,0.00038,2]
[311254691,1704997846942,-418.17723487,0.00038,2]
[311254693,1704997846953,-800.0,0.00038065,10]
[311254695,1704997846962,-1000.0,0.00038098,2]
[311254697,1704997846971,-1567.543096,0.000381,2]
[311254699,1704997846981,-151.68522207,0.00038184,2]
[311254701,1704997846990,-6181.0,0.00038228,2]
[311254703,1704997846999,-22735.9795329,0.0003833,10]
[311254705,1704997847007,-4182.55,0.00038352,2]
[311254707,1704997847016,-1002.23462108,0.00038356,30]
[311254709,1704997847026,-666.0,0.00038356,2]
[311254711,1704997847035,-153.84,0.00038356,2]
[311254713,1704997847044,-3868.0,0.00038356,10]
[311254715,1704997847053,-200.0,0.00038356,2]
[311254717,1704997847062,-21927.89,0.00038356,2]
[311254719,1704997847071,-155.0,0.00038357,2]
[311254721,1704997847080,-765.08541647,0.00038369,10]
[311254722,1704997847090,-4696.35765184,0.00038379,2]
[311254725,1704997847099,-8000.0,0.000384,2]
[311254727,1704997847109,-200.0,0.00038424,18]
[311254729,1704997847118,-171.71814317,0.00038431,7]
[311254731,1704997847127,-10007.49426658,0.00038479,11]
[311254733,1704997847136,-488.89674087,0.000385,4]
[311254735,1704997847146,-171.71814317,0.0003852,7]
[311254736,1704997847155,-171.71814317,0.0003855,7]
[311254738,1704997847165,-1479.51,0.00038651,60]
[311254741,1704997847174,-200.0,0.00038696,15]
[311254742,1704997847185,-450.0,0.0003874,3]
[311254744,1704997847195,-151.68522207,0.00038741,2]
[311254747,1704997847205,-184.87968352,0.000388,24]
[311254749,1704997847214,-975.0,0.000388,16]
[311254750,1704997847224,-7377.63,0.000388,7]
[311254752,1704997847233,-5678.68,0.000388,7]
[311254754,1704997847242,-171.71814317,0.00038859,7]
[311254756,1704997847253,-851.98955638,0.000389,2]
[311254759,1704997847262,-319.07326841,0.000389,2]
[311254761,1704997847271,-391.91305,0.00038904,14]
[311254762,1704997847282,-1479.51,0.00038904,60]
[311254764,1704997847291,-158.73998173,0.00038949,2]
[311254767,1704997847308,-281.73212903,0.0003898,2]
[311254768,1704997847317,-150.0,0.00038999,2]
[311254770,1704997847327,-150.0,0.00038999,2]
[311254772,1704997847337,-1427.43973993,0.00039,2]
[311254775,1704997847347,-282.68132749,0.00039,4]
[311254777,1704997847356,-900.0,0.00039,40]
[311254778,1704997847366,-140880.1629,0.00039,2]
[311254781,1704997847375,-700.0,0.00039,3]
[311254782,1704997847385,-200.0,0.00039078,19]
[311254785,1704997847395,-1000.0,0.000391,2]
[311254786,1704997847403,-1479.51,0.00039158,60]
[311254789,1704997847413,-160.50739785,0.00039183,7]
[311254791,1704997847422,-489.47,0.0003926,2]
[311254793,1704997847432,-153.84,0.00039269,2]
[311254794,1704997847440,-151.68522207,0.00039298,4]
[311254797,1704997847450,-1891.06,0.000393,7]
[311254799,1704997847459,-1967.93053106,0.000393,2]
[311254801,1704997847468,-171.71814317,0.00039397,7]
[311254802,1704997847478,-3423.2369444,0.000394,4]
[311254804,1704997847487,-250.0,0.000394,4]
[311254805,1704997847496,-250.0,0.000394,4]
[311254806,1704997847505,-250.0,0.000394,4]
[311254807,1704997847514,-250.0,0.000394,4]
[311254808,1704997847524,-250.0,0.000394,4]
[311254809,1704997847533,-474.2,0.000394,4]
[311254810,1704997847542,-2504.53,0.000394,3]
[311254811,1704997847552,-2504.53,0.000394,3]
[311254812,1704997847561,-2504.53,0.000394,3]
[311254813,1704997847571,-2504.53,0.000394,3]
[311254814,1704997847580,-2504.53,0.000394,3]
[311254815,1704997847590,-2504.53,0.000394,3]
[311254816,1704997847599,-2504.53,0.000394,3]
[311254817,1704997847608,-2504.53,0.000394,3]
[311254818,1704997847617,-2504.53,0.000394,3]
[311254819,1704997847627,-2504.53,0.000394,3]
[311254821,1704997847636,-2504.53,0.000394,3]
[311254823,1704997847646,-2504.53,0.000394,3]
[311254825,1704997847655,-2504.53,0.000394,3]
[311254826,1704997847665,-2504.53,0.000394,3]
[311254827,1704997847674,-2504.53,0.000394,3]
[311254828,1704997847683,-2504.53,0.000394,3]
[311254829,1704997847692,-2504.53,0.000394,3]
[311254830,1704997847701,-2504.53,0.000394,3]
[311254831,1704997847710,-2504.53,0.000394,3]
[311254832,1704997847719,-2504.53,0.000394,3]
[311254833,1704997847728,-157.59,0.000394,3]
[311254834,1704997847737,-157.59,0.000394,3]
[311254835,1704997847747,-157.59,0.000394,3]
[311254836,1704997847756,-157.59,0.000394,3]
[311254837,1704997847765,-157.59,0.000394,3]
[311254838,1704997847775,-157.59,0.000394,3]
[311254839,1704997847784,-1479.51,0.00039412,60]
[311254840,1704997847793,-200.0,0.00039427,20]
[311254841,1704997847802,-800.0,0.00039427,10]
[311254842,1704997847810,-183.92851571,0.00039443,7]
[311254843,1704997847819,-4548.95757275,0.000395,4]
[311254844,1704997847828,-3854.43496628,0.00039553,2]
[311254845,1704997847837,-588.553653,0.00039582,2]
[311254846,1704997847847,-809.275205,0.00039582,2]
[311254847,1704997847856,-681.203694,0.00039582,2]
[311254848,1704997847865,-411.517384,0.00039582,2]
[311254849,1704997847874,-606.349943,0.00039582,2]
[311254850,1704997847883,-411.517385,0.00039582,2]
[311254851,1704997847892,-162.334591,0.00039582,2]
[311254852,1704997847901,-444.899576,0.00039582,2]
[311254853,1704997847910,-179.629477,0.00039582,2]
[311254854,1704997847919,-340.601847,0.00039582,2]
[311254855,1704997847928,-205.758693,0.00039582,2]
[311254856,1704997847937,-7999.99,0.000396,28]
[311254857,1704997847946,-7377.63,0.000396,7]
[311254858,1704997847955,-5678.68,0.000396,7]
[311254859,1704997847964,-160.04902525,0.00039626,7]
[311254860,1704997847973,-4182.55,0.0003963,2]
[311254861,1704997847982,-1479.51,0.00039665,60]
[311254862,1704997847991,-228.0,0.00039683,2]
[311254863,1704997848000,-8000.0,0.000397,2]
[311254864,1704997848009,-1000.0,0.000397,2]
[311254865,1704997848019,-887.0,0.000397,2]
[311254866,1704997848028,-2000.0,0.000397,2]
[311254867,1704997848038,-310.0,0.000397,2]
[311254868,1704997848046,-471.79074981,0.000397,2]
[311254869,1704997848055,-3000.0,0.000397,2]
[311254870,1704997848064,-500.0,0.000397,2]
[311254871,1704997848073,-155.0,0.00039727,2]
[311254872,1704997848083,-200.0,0.00039732,20]
[311254873,1704997848092,-204.30056541,0.0003979,7]
[311254874,1704997848101,-428.28052565,0.000398,4]
[311254875,1704997848110,-151.68522207,0.00039855,6]
[311254876,1704997848119,-300.00528678,0.000399,4]
[311254877,1704997848128,-1493.38738055,0.000399,9]
[311254878,1704997848136,-1479.51,0.00039919,60]
[311254879,1704997848146,-9990.80548868,0.00039944,15]
[311254880,1704997848155,-8705.94833602,0.00039945,15]
[311254881,1704997848164,-200.0,0.00039946,15]
[311254882,1704997848173,-9990.80548868,0.00039947,15]
[311254883,1704997848182,-13000.73012712,0.00039949,15]
[311254884,1704997848191,-2757.73063301,0.00039951,15]
[311254885,1704997848200,-2757.73063301,0.00039951,15]
[311254886,1704997848209,-15235.40958811,0.00039951,10]
[311254887,1704997848218,-290.74991987,0.00039951,10]
[311254888,1704997848227,-9990.80548868,0.00039952,15]
[311254889,1704997848237,-1495.28530206,0.00039954,15]
[311254890,1704997848246,-1495.28530206,0.00039954,15]
[311254891,1704997848257,-334.62750761,0.00039955,10]
[311254892,1704997848267,-8705.94833602,0.00039958,15]
[311254893,1704997848276,-290.74991987,0.00039958,10]
[311254894,1704997848286,-4696.35765184,0.00039958,5]
[311254895,1704997848297,-8705.94833602,0.00039959,15]
[311254896,1704997848308,-200.0,0.0003996,15]
[311254897,1704997848317,-22751.27772255,0.00039962,10]
[311254898,1704997848326,-4826.02860784,0.00039962,10]
[311254899,1704997848336,-913.20989763,0.00039963,15]
[311254900,1704997848347,-201.69419153,0.00039963,10]
[311254901,1704997848358,-1598.11732093,0.00039964,10]
[311254902,1704997848369,-22751.27772255,0.00039964,10]
[311254903,1704997848378,-15235.40958811,0.00039964,10]
[311254904,1704997848388,-4826.02860784,0.00039965,10]
[311254905,1704997848398,-2757.73063301,0.00039965,15]
[311254906,1704997848409,-200.0,0.00039965,10]
[311254907,1704997848420,-200.0,0.00039966,15]
[311254908,1704997848430,-22751.27772255,0.00039966,10]
[311254909,1704997848441,-4826.02860784,0.00039967,10]
[311254910,1704997848451,-4826.02860784,0.00039967,10]
[311254911,1704997848461,-200.0,0.00039967,10]
[311254912,1704997848471,-17483.90960527,0.00039968,10]
[311254913,1704997848482,-200.0,0.00039968,15]
[311254914,1704997848491,-1598.11732093,0.00039968,10]
[311254915,1704997848502,-15235.40958811,0.00039969,10]
[311254916,1704997848511,-210.57229485,0.00039969,10]
[311254917,1704997848521,-17483.90960527,0.00039969,10]
[311254918,1704997848531,-913.20989763,0.00039969,15]
[311254919,1704997848540,-200.0,0.00039969,15]
[311254920,1704997848550,-210.57229485,0.00039971,10]
[311254921,1704997848560,-201.69419153,0.00039972,10]
[311254922,1704997848569,-17483.90960527,0.00039972,10]
[311254923,1704997848580,-200.0,0.00039973,15]
[311254924,1704997848589,-13000.73012712,0.00039974,15]
[311254925,1704997848599,-1598.11732093,0.00039974,10]
[311254926,1704997848608,-200.0,0.00039974,15]
[311254927,1704997848617,-200.0,0.00039974,10]
[311254928,1704997848627,-290.74991987,0.00039975,10]
[311254929,1704997848636,-13000.73012712,0.00039976,15]
[311254930,1704997848646,-1598.11732093,0.00039977,10]
[311254931,1704997848656,-200.0,0.00039977,15]
[311254932,1704997848664,-913.20989763,0.00039977,15]
[311254933,1704997848675,-17483.90960527,0.00039978,10]
[311254934,1704997848684,-200.0,0.00039979,15]
[311254935,1704997848694,-1495.28530206,0.0003998,15]
[311254936,1704997848703,-200.0,0.0003998,10]
[311254937,1704997848712,-662.39809317,0.0003998,3]
[311254938,1704997848723,-157.5,0.0003998,3]
[311254939,1704997848732,-717.0942411,0.0003998,3]
[311254940,1704997848741,-225.77692603,0.0003998,3]
[311254941,1704997848751,-2616.74927868,0.00039981,10]
[311254942,1704997848760,-15235.40958811,0.00039981,10]
[311254943,1704997848770,-334.62750761,0.00039981,10]
[311254944,1704997848942,-210.57229485,0.00039982,10]
[311254945,1704997848951,-22751.27772255,0.00039982,10]
[311254946,1704997848960,-2616.74927868,0.00039983,10]
[311254947,1704997848970,-200.0,0.00039983,10]
[311254948,1704997848980,-334.62750761,0.00039983,10]
[311254949,1704997848989,-334.62750761,0.00039984,10]
[311254950,1704997848999,-201.69419153,0.00039984,10]
[311254951,1704997849009,-210.57229485,0.00039985,10]
[311254952,1704997849019,-2616.74927868,0.00039986,10]
[311254953,1704997849031,-2616.74927868,0.00039987,10]
[311254954,1704997849040,-201.69419153,0.00039988,10]
[311254955,1704997849050,-200.0,0.00039989,10]
[311254956,1704997849059,-290.74991987,0.00039989,10]
[311254957,1704997849069,-5800.0,0.00039992,2]
[311254958,1704997849078,-150.0,0.00039999,2]
[311254959,1704997849087,-150.0,0.00039999,2]
[311254960,1704997849097,-12883.953598,0.0004,2]
[311254961,1704997849108,-1601.865572,0.0004,2]
[311254962,1704997849118,-156163.31298546,0.0004,15]
[311254963,1704997849127,-956.60549549,0.0004,2]
[311254964,1704997849136,-18767.49045081,0.0004,2]
[311254965,1704997849145,-155.0,0.0004,2]
[311254966,1704997849155,-22008.0721351,0.0004,4]
[311254967,1704997849166,-24015.574174,0.0004,2]
[311254968,1704997849177,-2951.019389,0.0004,2]
[311254969,1704997849187,-30980.342853,0.0004,2]
[311254970,1704997849197,-2903.802647,0.0004,2]
[311254971,1704997849207,-607.13914302,0.0004,41]
[311254972,1704997849217,-155.42468431,0.0004,3]
[311254973,1704997849226,-223.65882795,0.0004,4]
[311254974,1704997849235,-500000.0,0.0004,4]
[311254975,1704997849244,-17927.90643813,0.0004,4]
[311254976,1704997849255,-5800.0,0.0004,2]
[311254977,1704997849264,-350.0,0.0004,120]
[311254978,1704997849273,-400.0,0.0004,120]
[311254979,1704997849282,-1732.808354,0.0004,2]
[311254980,1704997849291,-12277.505406,0.0004,2]
[311254981,1704997849301,-3836.72044,0.0004,2]
[311254982,1704997849313,-4899.401556,0.0004,2]
[311254983,1704997849324,-8769.646719,0.0004,2]
[311254984,1704997849334,-307.56202961,0.0004,7]
[311254985,1704997849343,-327.21633099,0.0004,7]
[311254986,1704997849354,-243.30443136,0.0004,7]
[311254987,1704997849363,-1624.50783,0.0004,2]
[311254988,1704997849372,-500.0,0.0004,7]
[311254989,1704997849381,-2740.5146,0.0004,2]
[311254990,1704997849391,-3319.896811,0.0004,2]
[311254991,1704997849400,-500.0,0.0004,7]
[311254992,1704997849409,-327.21633099,0.0004,7]
[311254993,1704997849418,-243.30443136,0.0004,7]
[311254994,1704997849427,-307.56202962,0.0004,7]
[311254995,1704997849436,-169.918984,0.0004,7]
[311254996,1704997849445,-169.918984,0.0004,7]
[311254997,1704997849455,-1016.51862,0.0004,7]
[311254998,1704997849465,-1016.51862,0.0004,7]
[311254999,1704997849474,-151.0,0.0004,7]
[311255000,1704997849483,-225.204416,0.0004,7]
[311255001,1704997849492,-151.0,0.0004,7]
[311255002,1704997849502,-2069.0,0.0004,2]